Workbook

Sheet 总表
A1: 灯光系统、监控系统清单及参数
A2: 序号 | B2: 名称 | C2: 技术参数 | D2: 参考图片 | E2: 单位 | F2: 数量 | G2: 单价（元） | H2: 总计（元） | I2: 备注
A3: 1 | B3: 电子显示屏（楼门口） | C3: 巨彩P10 ,单色红色0.57*5.85，带无线控制卡，包边铝框全防水设计 | E3: 块 | F3: 1 | G3: 2600 | H3: =F3*G3 -> 2600
A4: 2 | B4: 电子显示屏（二楼音乐厅） | C4: 巨彩P10 单色红色0.41*8.09，带无线控制卡，包边铝框 | E4: 块 | F4: 1 | G4: 2600 | H4: 2600
A5: 3 | B5: 电子显示屏（二楼会议室） | C5: 巨彩P10 单色红色0.41*4.89，带无线控制卡，包边铝框 | E5: 块 | F5: 1 | G5: 1500 | H5: 1500
A6: 4 | B6: 舞台电子屏 | C6: 全彩屏，室内Q1.8/Q1.86E全彩3.62*1.7 = 6.15平方 | E6: 块 | F6: 6.15 | G6: 6880 | H6: 42312
A7: 5 | B7: 校门口电子屏 | C7: 室内Q1.8/Q1.86E全彩2.66*1.7=4.522平方 | E7: 块 | F7: 4.5 | G7: 6880 | H7: 30960
A8: 6 | B8: 监控 | C8: 监控系统清单及参数 | E8: 套 | F8: 1 | G8: 32020 | H8: 32020 | I8: 详见附件
A9: 7 | B9: 广播系统 | C9: 公共广播系统清单及参数 | E9: 套 | F9: 1 | G9: 4650 | H9: 4650 | I9: 详见附件
A10: 8 | B10: 舞台灯光系统 | C10: 音体教室灯光配置 | E10: 套 | F10: 1 | G10: 13200 | H10: 13200 | I10: 详见附件
A11: 9 | B11: 一体机 | C11: 65英寸幼教平板，参数见附件 | E11: 台 | F11: 14 | G11: 8800 | H11: 123200 | I11: 详见附件
A12: 10 | B12: 功能厅音响设 | C12: 音体教室音响设备清单及参数 | E12: 套 | F12: 1 | G12: 29180 | H12: 29180 | I12: 详见附件
A13: 合计 | H13: =SUM(H3:H12) -> 282222

Sheet 监控系统清单及参数
A1: 监控系统清单及参数
A2: 序号 | B2: 产品名称 | C2: 参数 | D2: 单位 | E2: 数量 | F2: 单价 | G2: 总价
A3: 外围跟厨房
A4: 1 | B4: 摄像头 | C4: 全彩带夜视，200万像素，防水IP66, 红外补光30米以上，视频压缩H265, POE供电， 电源线，一体线1.0以上国标 现场施工要立杆，挖沟布线，要美观，整洁 | D4: 个 | E4: 15 | F4: 295 | G4: =E4*F4 -> 4425
A5: 2 | B5: 摄像头 | C5: 全彩带夜视，300万像素，防水IP66, 红外补光30米以上，视频压缩H265, POE供电， 电源线，一体线1.0以上国标 现场施工要立杆，挖沟布线，要美观，整洁 | D5: 个 | E5: 6 | F5: 295 | G5: =E5*F5 -> 1770
A6: 3 | B6: 电源 | C6: 12V2A | D6: 个 | E6: 21 | F6: 25 | G6: 525
A7: 4 | B7: 支架 | C7: 鸭嘴 | D7: 台 | E7: 21 | F7: 25 | G7: 525
A8: 5 | B8: 立杆 | C8: 3.5米标准组合杆 | D8: 根 | E8: 4 | F8: 700 | G8: 2800
A9: 6 | B9: 弱电盒 | C9: 放置设备 | D9: 个 | E9: 21 | F9: 15 | G9: 315
A10: 7 | B10: 弱电箱 | C10: 300*400 | D10: 个 | E10: 3 | F10: 190 | G10: 570
A11: 8 | B11: 录像机 | C11: 32路4盘位 | D11: 台 | E11: 1 | F11: 1680 | G11: 1680
A12: 9 | B12: 硬盘 | C12: 8T(储存1个月） | D12: 个 | E12: 2 | F12: 1480 | G12: 2960
A13: 10 | B13: 光纤相关设备 | C13: 收发器，尾纤，终端，溶解等 | D13: 批 | E13: 1 | F13: 900 | G13: 900
A14: 11 | B14: 光纤 | C14: 电信级12芯 | D14: 米 | E14: 300 | F14: 1.5 | G14: 450
A15: 12 | B15: 交换机 | C15: 8口 | D15: 台 | E15: 4 | F15: 180 | G15: 720
A16: 13 | B16: 超五类网线 | C16: 国标 | D16: 米 | E16: 2000 | F16: 2 | G16: 4000
A17: 14 | B17: 监控专用电源线 | C17: 国标RVV | D17: 米 | E17: 2000 | F17: 1.5 | G17: 3000
A18: 15 | B18: 扎带，水晶头，管卡，PVC线管，电胶布等 | D18: 批 | E18: 1 | F18: 580 | G18: 580
A19: 16 | B19: 人工费用 | G19: 6800
G20: =SUM(G4:G19) -> 32020

Sheet 公共广播系统清单及参数
A1: 公共广播系统清单及参数
A2: 序号 | B2: 设备或材料名称 | C2: 产品图 | D2: 技术参数 | E2: 数量 | F2: 单位 | G2: 单价 | H2: 总价
A3: 1 | B3: 壁挂音柱40W | D3: 1、全天候设计（防水、耐热、抗硫），可在多种特殊环境下长期使用 2、高灵敏度、高声压级设计，宽广的频响覆盖范围 3、声音清晰纯净，轻松应对各种背景音乐和语音扩声需求 4、简约大方的外观设计，能与各种场合融合 喇叭口径 低音4”×2，高音3”×1 额定功率20W 最大功率40W 额定输入70V/100V 灵敏度91dB 频响范围120Hz-18KHz 最大声压级104dB 外形尺寸（mm）151×132×419 | E3: 2 | F3: 台 | G3: 490 | H3: =G3*E3 -> 980
A4: 2 | B4: 无线麦克 | D4: UHF600-699,一拖二红外自动对频 最大使用距离80米，理想使用距离30米 使用lD导频锁频技术,相同频率也不受扞扰而影响正常使用。 | E4: 1 | F4: 套 | G4: 990 | H4: =G4*E4 -> 990
A5: 3 | B5: 功放主机120W | D5: 1、提供100V/70V定压输出及4-16Ω输出 2、3路MIC、2路AUX输入 3、MIC1具有优先默音功能 4、1路扩展输出口，可用于功率扩展 5、温度保护、过压及过载保护、短路保护 额定功率 120W 功 耗 180W 输入灵敏度 AUX 250mV（非平衡）MIC 5 mV（非平衡） 音量调整范围 BASS: ±10dB TREBLE: ±10dB 线性失真 ≤1%（100%功率） 信 噪 比 LINE≥86dB MIC≥72dB 优先级别 MIC1优先 频率响应 70Hz-18KHz（±3dB) 输出调整率 <3dB 辅助输出 非平衡0.775V 保 护 过载保护、短路保护、过温保护 供电电源 AC220V±10% 50Hz-60Hz 机身尺寸（mm）307*440*88mm | E5: 1 | F5: 台 | G5: 1680 | H5: =G5*E5 -> 1680
A6: 4 | B6: 安装 调试 配线 线路优化 运费（综合类别费用） | E6: 1 | F6: 项 | G6: 1000 | H6: =G6*E6 -> 1000
A7: 设备总计（未税）： | H7: =SUM(H3:H6) -> 4650

Sheet 音体教室灯光配置
A1: 音体教室舞台灯光清单及参数
A2: 序号 | B2: 品名 | C2: 品牌型号 | D2: 产品图片 | E2: 性能 | F2: 效果 | G2: 单位 | H2: 数量 | I2: 单价 | J2: 金额
A3: 面光灯
A4: 1 | B4: 暖白帕灯 | C4: PZ-002 | E4: 电压：AC 110V-220V/50-60HZ 总功率：150W 光源：暖光 光色温：暖白3200K 通道模式：2CHS/4通道 光源寿命：50000-100000 hours 调光频率：1000Hz 驱动电流：700mA 控制信号：DMX512 控制模式：自走，主从 DMX通道：6通道 发光角度：45°/80° 可选 防护等级：IP20 | G4: 台 | H4: 8 | I4: 580 | J4: =I4*H4 -> 4,640
A5: 染色灯
A6: 2 | B6: 54颗全彩帕灯 | C6: SY-003 | E6: 光源：54颗1W LED 电源：AC90-250V/50-60HZ 总功率：60W 光源寿命：6-10万小时 LED角度：25° 控制方式：自动/声控/ DMX/主从 DMX通道：8 净重/毛重：2.3/2.5KG 尺寸：250*250*360mm 描述：铸铝外壳，颜色速度可调（可定制手拉手电源线） | G6: 台 | H6: 8 | I6: 480 | J6: 3,840
A7: 控制器+外设部分
A8: 3 | B8: 240控台 | C8: WK-240 | E8: 可控制12/24台16通道电脑灯，可存储场景12/24个，程序12个， 程序最大步数为20/40步，程序总步数240/480步，总通道240个， 调光通道48个，可分控、点控、集控。LCD液晶显示屏，16*2字符。 电压：AC200-240V, 50HZ | G8: 台 | H8: 1 | I8: 960 | J8: 960
A9: 设备总合计(元）: | J9: =SUM(J4:J8) -> 9,440
A10: 4 | B10: 小灯钩 | C10: S013 | G10: 个 | H10: =H4+H6 -> 16 | I10: 10 | J10: =I10*H10 -> 160
A11: 5 | B11: 安装支架 | C11: 定制 | G11: 批 | H11: 1 | I11: 2,000 | J11: 2,000
A12: 6 | B12: 安装调试 | C12: 物流、安装费、调试费 | G12: 人 | H12: 1 | I12: 1,600 | J12: 1,600
A13: 安装辅材总合计(元）: | J13: =SUM(J10:J12) -> 3,760
A14: 总合计(元）未税: | J14: =J9+J13 -> 13,200

Sheet 一体机参数
A1: 一体机参数
A2: 整机要求： | B2: 一、整体设计参数要求： 1.显示尺寸：≥ 65英寸；背光：DLED背光；待机功率≤0.5W；分辨率：3840×2160；液晶屏A级标准。 2.★自带安卓操作系统：安卓版本不低于Android9.0 ；与可插拔式电脑系统形成双系统；至少采用四核CPU、双核GPU；RAM≥4G，ROM≥32G。（提供所投产品规格书并加盖制造商公章） 3.红外触控技术：在Android、Windows系统双系统下均支持20点触控，支持多人同时书写和擦除。 4.整机前置一个多功能电源按键，开机状态下短按进入节能模式；长按实现开关机。 5.内置扩音器：整机内置 2.0 声道扬声器，前朝向 10W中高音扬声器 2 个额定总功率 20W。 6.电脑无线传屏：可将电脑画面实时传输到大屏，并且可将大屏上的触控信号回传至电脑中，实现反向操作；整机支持同时接收并显示4个电脑画面。 7、★提供国家强制性产品认证证书、节能认证证书（能效等级需为一级） 二、内置电脑模块参数要求： 1、至少搭载Intel酷睿系列第六代 i5或以上CPU，内存≥8GB DDR4笔记本内存或以上配置，硬盘≥256GB或以上SSD固态硬盘。 2、和整机的连接采用万兆级接口，传输速率≥10Gbps。 3、具有独立非外扩展的视频输出接口：≥1路HDMI ，USB3.0接口：≥4路，VGA接口：≥1路。
A3: 整机内置备授课软件： | B3: 1．采用备授课一体化框架设计，教师可根据教学场景自由切换备课模式与触控交互教学模式。 2．支持课件云同步，课件上的所有修改、操作均可自动同步至云端，无需单独保存上传，确保多终端调用同个课件均为最新版本，只需联网登录备授课软件即可获取课件。 3．汉字教学工具：具备汉字生字卡，直观展示汉字部首、笔画数量，笔画书写支持分步展示和连续展示，支持汉字朗读。 4．专用美术画板工具：提供铅笔、毛笔、油画笔等笔触，具备符合绘画调色教学需求的模拟调色盘，可选择不同颜色混合调色。 5．英汉字典：支持输入英文字母、单词，单词可生成包含释义、近义词并支持英语朗读。 6．提供丰富的地理教学图集，可查看行星的详细数据信息和内部结构信息（地壳、地幔、外核、内核等），支持地球模型直接进行平面/立体转换，清晰展现地球表面的六大板块、降水分布、气温分布、气候分布、人口分布、表层洋流、陆地自然带、海平面等压线等内容。 互动分类游戏：支持创建互动分类游戏；不少于10种游戏模板，可轻松生成互动分类游戏，提升课堂趣味性。
A4: 内置幼儿教学资源： | B4: 1．系统资源严格依据《3-6岁儿童学习与发展指南》与《幼儿园指导纲要》编制而成，资源内容涵盖健康、语言、社会、科学、艺术等五个领域。 2．系统主要分为应用和资源两大特色教学功能： 3．资源包括：儿童普通读物动画和视频资源列表（2600个及以上）； 4．应用包括：“主题课程、特色课堂、电子白板、工具”等。 5．系统提供相对成体系的课程，不仅仅是课件，老师授课一键调用资源及其方便简单。 6．系统提供：主题绘本，礼仪与安全，国学经典，幼儿才艺，剑桥主题英语，剑桥互动英语，经典童话故事，行为习惯故事，多元主题活动，潜能互动课程，手指操，蒙氏快乐阅读12类五大领域教育资源。 7．幼教系统不低于2900条1080P高清视频和高清动画资源。
A5: 助手软件 | B5: 1．提供符合幼教风格的快捷桌面，用户可以快捷进入白板，相机，文件管理及更多应用； 2．桌面支持最大化与最小化切换，打开应用后，桌面自动进入最小化，不影响应用正常使用，同时支持随意拖拽； 3．支持自定义设备名称：教师可以自定义编辑主页名称，如“XX幼儿园小一班”； 4．提供更多应用功能列表，用户可以快速定位应用；同时支持用户管理应用，教师可以根据教学需要增加需要的应用，以及删除不需要的应用； 5．返回windows桌面：提供快捷返回windows界面功能； 自动更新检测：系统自动监测是否当前为最新版本，若不在最新版本，可进行一键更新；
A6: 配套幼教智能笔 | B6: 1.整体功能：配置不少于5个物理功能按键，支持上下翻页，音量调节，播放暂停，录音，语音操控，点读教学等功能； 2.扫书点读：支持扫书点读操控，可通过配套的主题课程教材进行点读操控，自动打开交互智能平板上里安装的数字教学课程内容应用，无需单独登录或者启动程序，支持点击OK键在flash视频动画播放/暂停，教学精彩一触即达，点读头响应延时≤40ms；（提供国家级检测机构所出具的权威检测报告复印件并加盖厂家公章） 3.智能遥控：支持智能摇控功能，短按实现翻页控制，兼容白板软件、PPT、PDF等多种演示软件课件，长按音量大小调整；支持播放/暂停等操作； 4.语音操控：支持语音识别操控，可直接通过语音打开PC内已安装的应用、音量大小调整、打开关闭应用软件等系统操作；可直接通过语音调用搜索课件内容，检索对应课程等，轻松掌控课堂教学活动； 5.一键录音：支持一键录音，自动分段存储；录音内容可存储在笔内部，内存不少于512MB； 6.录音转写：提供录音转写工具软件，用户可以将录音文件上传云端进行转写，云端支持语音及转写后文档保存；转写成功后笔内部录音文件自动删除，避免文件冗余；（提供国家级检测机构所出具的权威检测报告复印件并加盖厂家公章） 7.无线接收器：采用RF 2.4GHz无线连接方式，无线接收器采用磁性吸附设计，不易丢失，1对1自动匹配，即插即用； 8.自动节能：支持智能休眠节电，大于3分钟不使用时，自动断开进入待机状态；大于10分钟不使用时，自动关机；待机状态下，晃动笔，自动唤醒。保障笔使用不当造成电量损耗； 9.锂电池：内置锂电池驱动，支持USB充电，联机使用时，满载续航能力大于4小时；脱机使用时，续航能力大于72小时； 10.配套书籍：配套提供5本或以上《幼儿多元能力主题活动》主题图书教材，在主题活动中为幼儿安排了涵盖社会、健康、语言、科学、艺术等发展领域的课程知识，激发幼儿探索世界的兴趣，发掘幼儿深藏的潜能。课程设计符合幼儿生理、心理的发展规律,通过多媒体的视频动漫点读教学,给幼儿营造生动活泼、丰富多彩的课堂教学环境。

Sheet 音体教室音响设备清单及参数
A1: 音体教室音响设备清单及参数
A2: 序号 | B2: 产品名称 | C2: 技术参数及指标 | D2: 图片 | E2: 品牌/产地 | F2: 数量 | G2: 单位 | H2: 单价（元） | I2: 总价（元）
A3: 1 | B3: 主音响 | C3: 单元类型：1×3”(75×)高频压缩驱动器 1×15”低音 频率响应：55Hz ~18KHz额定功率：500W灵敏度：99db 最大声压级：124db阻抗：8Ω标准覆盖角：80°* 50°可出 厂家具有3A证书、ISO90001证书 产品具有MA机构的检测报告 | E3: 中国 | F3: 2 | G3: 只 | H3: 3680.00 | I3: =H3*F3 -> 7360.00
A4: 2 | B4: 辅助音响 | C4: 单元类型：低频 12”铁氧体低音单元（170磁）高频1.75”(44.4芯) 频率响应：60Hz ~20KHz 额定功率：450W 灵敏度：98db 最大声压级：124db 覆盖角度：90°* 60°阻抗：8Ω 厂家具有3A证书、ISO90001证书 产品具有MA机构的检测报告 | E4: 中国 | F4: 2 | G4: 只 | H4: 2680.00 | I4: =H4*F4 -> 5360.00
A5: 3 | B5: 辅助音响 功放 | C5: 立体声模式 每声道平均持续输出功率8Ω 20Hz-20KHz 0.03％THD 600W4Ω 20Hz-20KHz 0.05％THD 900W2Ω 1KHz 1％THD 1100W桥接音声道模式 具有开机保护、短路、直流、过热、复位开关和超音频保护装置负载保护 自动哑音开/关，直流故障电源自动断开 厂家具有3A证书、ISO90001证书 产品具有国家3C认证 | E5: 中国 | F5: 1 | G5: 台 | H5: 2800.00 | I5: 2800.00
A6: 4 | B6: 主音响 功放 | C6: 立体声模式 每声道平均持续输出功率8Ω 20Hz-20KHz 0.03％THD 800W4Ω 20Hz-20KHz 0.05％THD 1200W2Ω 1KHz 1％THD 1400W桥接音声道模式 平衡持续输出功率8Ω 20Hz-20KHz 0.1％THD 具有开机保护、短路、直流、过热、复位开关和超音频保护装置负载保护 自动哑音开/关，直流故障电源 厂家具有3A证书、ISO90001证书 产品具有国家3C认证 | E6: 中国 | F6: 1 | G6: 台 | H6: 1980.00 | I6: 1980.00
A7: 5 | B7: 调音台 | C7: 话筒：6通道频响：+0.5dB/-0.5dB（20Hz-20kHz）总谐波失真：0.03%@+14dBu（20 Hz-20kHz）输入通道：12通道：单声道：4；立体声：4输出通道：STEREO OUT：2；PHONES：1母线：立体声：1；编组：2，AUX（包括FX）USB音频：USB音频2.0兼容 采样率：最大192kHz，Bit深度24-bit幻象电源电压：+48V内建数字效果：24编程 | F7: 1 | G7: 台 | H7: 2250.00 | I7: 2250.00
A8: 6 | B8: 真分集无线麦 | C8: 接收机 RECEIVER频率范围Frequency range: 740—800MHz可调信道数Adjustable number of channels: 100X2=200震荡方式Vibration mode: 锁相环（PLL)频率合成频率稳定性Frequency Stability: ±10ppm接收方式The receiving mode: 超外差二次变频分集类型Diversity Type: 双调谐眞分集自动选讯接收灵敏度Receiver sensitivity: -95dBm音频频响Audio Frequency Response : 40--18KHz失真度Distortion: ≤0.5%信噪比Signal to Noise Ratio: ≥110dB音频输出Audio output: 平衡输出和不平衡输出电源规格Power supply: 110-240V-12V 50-60Hz（开关电源适配器）发射机 TRANSMITTER频率范围Frequency range: 740—800MHz可调信道数Adjustable number of channels: 100X2=200震荡方式Vibration mode: 锁相环（PLL)频率合成频率稳定性Frequency Stability: ±10ppm调制方式Modulation: 调频（FM）射频功率RF power: 10--30mW音频频响Audio Frequency Response: 40--18KHz失真度Distortion: ≤0.5%电池规格Battery: 2x1.5V AA Size电池寿命Battery Life: 8—15小时 厂家具有3A证书、ISO90001证书 | E8: 中国 | F8: 1 | G8: 套 | H8: 1800.00 | I8: 1800.00
A9: 7 | B9: 音响数字处理器 | C9: 输入/输出通道 4入8出4Input/8Output 每个输入通道功能 Each Input channel 静音Mute √ 延时Delay 每个通道设立单独延时，调节范围 adj range: 0-1000ms。 极性Poalr 同相（+）反相（-）In phase(+) & reversed phase( -) 均衡EQ 6个参量均衡,中心频率点(FREQ)：20Hz-20KHz 厂家具有3A证书、ISO90001证书 产品具有MA机构的检测报告、调式软件有专业音频处理设备控制软件著作权登记证 | E9: 中国 | F9: 1 | G9: 套 | H9: 2250.00 | I9: 2250.00
A10: 8 | B10: 机柜 | E10: 中国 | F10: 1 | G10: 台 | H10: 880.00 | I10: 880.00
A11: 9 | B11: 线材、配件 | C11: 过机线、音箱吊件、系统接插件、音响支架等 | F11: 1 | G11: 项 | H11: 1000.00 | I11: 1000.00
A12: 10 | B12: 安装调式费 | F12: 1 | G12: 项 | H12: 3500.00 | I12: 3500.00
A13: 11 | B13: 小计 | I13: =SUM(I3:I12) -> 29180.00
